fUSD/lending_fUSD_20240224
["ID","MTS","AMOUNT","RATE_DAILY","PERIOD"]
[315071692,1708803096725,-500.0,0.00027945,2]
[315071693,1708803096734,-500.0,0.00027945,2]
[315071694,1708803096743,-500.0,0.00027945,2]
[315071695,1708803096753,-510.07927477,0.00027945,2]
[315071696,1708803096762,-500.0,0.00027945,2]
[315071697,1708803096771,-504.74156301,0.00027945,2]
[315071698,1708803096781,-500.0,0.00027945,2]
[315071699,1708803096790,-500.0,0.00027945,2]
[315071700,1708803096799,-500.0,0.00027945,2]
[315071701,1708803096809,-500.0,0.00027945,2]
[315071702,1708803096818,-500.0,0.00027945,2]
[315071703,1708803096828,-763.68,0.00027945,2]
[315071704,1708803096838,-500.0,0.00027945,2]
[315071705,1708803096847,-500.0,0.00027945,2]
[315071706,1708803096857,-500.0,0.00027945,2]
[315071707,1708803096867,-500.0,0.00027945,2]
[315071708,1708803096877,-500.0,0.00027945,2]
[315071709,1708803096887,-500.0,0.00027945,2]
[315071710,1708803096896,-500.0,0.00027945,2]
[315071711,1708803096906,-500.0,0.00027945,2]
[315071712,1708803096916,-500.0,0.00027945,2]
[315071713,1708803096926,-500.0,0.00027945,2]
[315071714,1708803096937,-680.64,0.00027945,2]
[315071715,1708803096946,-500.0,0.00027945,2]
[315071716,1708803096956,-500.0,0.00027945,2]
[315071717,1708803096966,-500.0,0.00027945,2]
[315071718,1708803096977,-500.0,0.00027945,2]
[315071719,1708803096987,-500.0,0.00027945,2]
[315071720,1708803096998,-500.0,0.00027945,2]
[315071721,1708803097008,-265.56916972,0.00027945,2]
[315071722,1708803097022,-500.0,0.00027945,2]
[315071723,1708803097036,-671.17,0.00027945,2]
[315071724,1708803097045,-663.35,0.00027945,2]
[315071725,1708803097055,-509.48079953,0.00027945,2]
[315071726,1708803097065,-500.0,0.00027945,2]
[315071727,1708803097074,-500.0,0.00027945,2]
[315071728,1708803097084,-500.0,0.00027945,2]
[315071729,1708803097094,-500.0,0.00027945,2]
[315071730,1708803097106,-500.0,0.00027945,2]
[315071731,1708803097117,-703.93,0.00027945,2]
[315071732,1708803097126,-609.40862006,0.00027945,2]
[315071733,1708803097136,-500.0,0.00027945,2]
[315071734,1708803097145,-500.0,0.00027945,2]
[315071735,1708803097155,-500.0,0.00027945,2]
[315071736,1708803097164,-500.0,0.00027945,2]
[315071737,1708803097174,-672.67,0.00027945,2]
[315071738,1708803097183,-500.0,0.00027945,2]
[315071739,1708803097193,-500.0,0.00027945,2]
[315071740,1708803097204,-500.0,0.00027945,2]
[315071741,1708803097214,-500.0,0.00027945,2]
[315071742,1708803097223,-500.0,0.00027945,2]
[315071743,1708803097233,-500.0,0.00027945,2]
[315071744,1708803097242,-818.29,0.00027945,2]
[315071745,1708803097251,-1017.02,0.00027945,2]
[315071746,1708803097261,-500.0,0.00027945,2]
[315071747,1708803097270,-676.14,0.00027945,2]
[315071748,1708803097279,-500.0,0.00027945,2]
[315071749,1708803097289,-500.0,0.00027945,2]
[315071750,1708803097299,-689.28,0.00027945,2]
[315071751,1708803097308,-500.0,0.00027945,2]
[315071752,1708803097318,-500.0,0.00027945,2]
[315071753,1708803097327,-550.08,0.00027945,2]
[315071754,1708803097337,-500.0,0.00027945,2]
[315071755,1708803097347,-968.72,0.00027945,2]
[315071756,1708803097357,-500.0,0.00027945,2]
[315071757,1708803097366,-500.0,0.00027945,2]
[315071758,1708803097376,-3585.38,0.00027945,2]
[315071759,1708803097385,-500.0,0.00027945,2]
[315071760,1708803097395,-500.0,0.00027945,2]
[315071761,1708803097406,-500.0,0.00027945,2]
[315071762,1708803097416,-500.0,0.00027945,2]
[315071763,1708803097425,-500.0,0.00027945,2]
[315071764,1708803097434,-536.25,0.00027945,2]
[315071765,1708803097444,-548.14862976,0.00027945,2]
[315071766,1708803097454,-500.0,0.00027945,2]
[315071767,1708803097463,-553.09,0.00027945,2]
[315071768,1708803097473,-500.0,0.00027945,2]
[315071769,1708803097569,-500.0,0.00027945,2]
[315071770,1708803097581,-500.0,0.00027945,2]
[315071771,1708803097591,-500.0,0.00027945,2]
[315071772,1708803097600,-500.0,0.00027945,2]
[315071773,1708803097610,-500.0,0.00027945,2]
[315071774,1708803097619,-500.0,0.00027945,2]
[315071775,1708803097629,-500.0,0.00027945,2]
[315071776,1708803097639,-500.0,0.00027945,2]
[315071777,1708803097649,-500.0,0.00027945,2]
[315071778,1708803097658,-500.0,0.00027945,2]
[315071779,1708803097668,-500.0,0.00027945,2]
[315071780,1708803097677,-153.35912939,0.00027945,2]
[315071781,1708803097687,-636.84,0.00027945,2]
[315071782,1708803097697,-729.45,0.00027945,2]
[315071783,1708803097706,-500.0,0.00027945,2]
[315071784,1708803097715,-500.0,0.00027945,2]
[315071785,1708803097725,-511.62,0.00027945,2]
[315071786,1708803097734,-500.0,0.00027945,2]
[315071787,1708803097743,-500.0,0.00027945,2]
[315071788,1708803097753,-500.0,0.00027945,2]
[315071789,1708803097762,-500.0,0.00027945,2]
[315071790,1708803097772,-3400.85,0.00027945,2]
[315071791,1708803097781,-765.79,0.00027945,2]
[315071792,1708803097792,-500.0,0.00027945,2]
[315071793,1708803097801,-500.0,0.00027945,2]
[315071794,1708803097810,-500.0,0.00027945,2]
[315071795,1708803097820,-500.0,0.00027945,2]
[315071796,1708803097830,-500.0,0.00027945,2]
[315071797,1708803097839,-500.0,0.00027945,2]
[315071798,1708803097849,-507.47502578,0.00027945,2]
[315071799,1708803097859,-500.0,0.00027945,2]
[315071800,1708803097869,-500.0,0.00027945,2]
[315071801,1708803097879,-500.0,0.00027945,2]
[315071802,1708803097888,-500.0,0.00027945,2]
[315071803,1708803097898,-544.36,0.00027945,2]
[315071804,1708803097907,-500.0,0.00027945,2]
[315071805,1708803097917,-617.97,0.00027945,2]
[315071806,1708803097926,-805.71,0.00027945,2]
[315071807,1708803097935,-2048.3,0.00027945,2]
[315071808,1708803097945,-529.03356648,0.00027945,2]
[315071809,1708803097954,-502.03362527,0.00027945,2]
[315071810,1708803097964,-500.0,0.00027945,2]
[315071811,1708803097973,-500.0,0.00027945,2]
[315071812,1708803097983,-500.0,0.00027945,2]
[315071813,1708803097993,-500.0,0.00027945,2]
[315071814,1708803098003,-503.7244876,0.00027945,2]
[315071815,1708803098012,-500.0,0.00027945,2]
[315071816,1708803098025,-500.0,0.00027945,2]
[315071817,1708803098034,-500.0,0.00027945,2]
[315071818,1708803098044,-500.0,0.00027945,2]
[315071819,1708803098054,-580.62,0.00027945,2]
[315071820,1708803098064,-500.0,0.00027945,2]
[315071821,1708803098073,-504.39805865,0.00027945,2]
[315071822,1708803098083,-500.0,0.00027945,2]
[315071823,1708803098093,-491.82511357,0.00027945,2]
[315071824,1708803098104,-500.0,0.00027945,2]
[315071825,1708803098113,-500.0,0.00027945,2]
[315071826,1708803098123,-500.0,0.00027945,2]
[315071827,1708803098132,-500.0,0.00027945,2]
[315071828,1708803098141,-500.0,0.00027945,2]
[315071829,1708803098151,-500.0,0.00027945,2]
[315071830,1708803098160,-500.0,0.00027945,2]
[315071831,1708803098170,-500.0,0.00027945,2]
[315071832,1708803098179,-500.0,0.00027945,2]
[315071833,1708803098189,-500.0,0.00027945,2]
[315071834,1708803098199,-200.13331148,0.00027945,2]
[315071835,1708803098209,-193.11780127,0.00027945,2]
[315071836,1708803098219,-500.0,0.00027945,2]
[315071837,1708803098229,-500.0,0.00027945,2]
[315071838,1708803098238,-500.0,0.00027945,2]
[315071839,1708803098248,-500.0,0.00027945,2]
[315071840,1708803098257,-1603.43,0.00027945,2]
[315071841,1708803098266,-500.0,0.00027945,2]
[315071842,1708803098276,-508.88868954,0.00027945,2]
[315071843,1708803098285,-500.0,0.00027945,2]
[315071844,1708803098295,-500.0,0.00027945,2]
[315071845,1708803098305,-500.0,0.00027945,2]
[315071846,1708803098314,-500.0,0.00027945,2]
[315071847,1708803098323,-500.0,0.00027945,2]
[315071848,1708803098332,-500.0,0.00027945,2]
[315071849,1708803098342,-590.28,0.00027945,2]
[315071850,1708803098352,-500.0,0.00027945,2]
[315071851,1708803098361,-500.0,0.00027945,2]
[315071852,1708803098370,-500.0,0.00027945,2]
[315071853,1708803098380,-500.0,0.00027945,2]
[315071854,1708803098389,-500.0,0.00027945,2]
[315071855,1708803098398,-500.0,0.00027945,2]
[315071856,1708803098408,-500.0,0.00027945,2]
[315071857,1708803098417,-500.0,0.00027945,2]
[315071858,1708803098427,-500.0,0.00027945,2]
[315071859,1708803098437,-500.0,0.00027945,2]
[315071860,1708803098447,-500.0,0.00027945,2]
[315071861,1708803098456,-500.0,0.00027945,2]
[315071862,1708803098466,-500.0,0.00027945,2]
[315071863,1708803098476,-1420.04,0.00027945,2]
[315071864,1708803098485,-500.0,0.00027945,2]
[315071865,1708803098495,-500.0,0.00027945,2]
[315071866,1708803098504,-500.0,0.00027945,2]
[315071867,1708803098514,-500.0,0.00027945,2]
[315071868,1708803098523,-165.91894997,0.00027945,2]
[315071869,1708803098533,-508.01,0.00027945,2]
[315071870,1708803098542,-883.75,0.00027945,2]
[315071871,1708803098552,-500.0,0.00027945,2]
[315071872,1708803098561,-500.0,0.00027945,2]
[315071873,1708803098571,-500.0,0.00027945,2]
[315071874,1708803098581,-566.15450632,0.00027945,2]
[315071875,1708803098590,-522.97,0.00027945,2]
[315071876,1708803098600,-500.0,0.00027945,2]
[315071877,1708803098609,-500.0,0.00027945,2]
[315071878,1708803098619,-500.0,0.00027945,2]
[315071879,1708803098628,-500.0,0.00027945,2]
[315071880,1708803098638,-339.94593702,0.00027945,2]
[315071881,1708803098648,-500.0,0.00027945,2]
[315071882,1708803098657,-565.96697503,0.00027945,2]
[315071883,1708803098667,-577.77,0.00027945,2]
[315071884,1708803098677,-500.0,0.00027945,2]
[315071885,1708803098686,-500.0,0.00027945,2]
[315071886,1708803098696,-500.0,0.00027945,2]
[315071887,1708803098706,-783.17,0.00027945,2]
[315071888,1708803098716,-500.0,0.00027945,2]
[315071889,1708803098725,-500.0,0.00027945,2]
[315071890,1708803098734,-500.0,0.00027945,2]
[315071891,1708803098744,-803.41,0.00027945,2]
[315071892,1708803098754,-500.0,0.00027945,2]
[315071893,1708803098763,-546.45,0.00027945,2]
[315071894,1708803098773,-500.0,0.00027945,2]
[315071895,1708803098783,-500.0,0.00027945,2]
[315071896,1708803098792,-500.0,0.00027945,2]
[315071897,1708803098802,-500.0,0.00027945,2]
[315071898,1708803098812,-500.0,0.00027945,2]
[315071899,1708803098821,-3299.19,0.00027945,2]
[315071900,1708803098830,-500.0,0.00027945,2]
[315071901,1708803098840,-500.0,0.00027945,2]
[315071902,1708803098849,-3559.89,0.00027945,2]
[315071903,1708803098859,-1355.1,0.00027945,2]
[315071904,1708803098869,-500.0,0.00027945,2]
[315071905,1708803098879,-2056.09,0.00027945,2]
[315071906,1708803098889,-500.0,0.00027945,2]
[315071907,1708803098899,-500.0,0.00027945,2]
[315071908,1708803098908,-500.0,0.00027945,2]
[315071909,1708803098918,-500.0,0.00027945,2]
[315071910,1708803098928,-507.59595573,0.00027945,2]
[315071911,1708803098938,-500.0,0.00027945,2]
[315071912,1708803098947,-500.0,0.00027945,2]
[315071913,1708803098957,-500.0,0.00027945,2]
[315071914,1708803098967,-500.0,0.00027945,2]
[315071915,1708803098977,-802.48,0.00027945,2]
[315071916,1708803098986,-500.0,0.00027945,2]
[315071917,1708803098996,-500.0,0.00027945,2]
[315071918,1708803099005,-500.0,0.00027945,2]
[315071919,1708803099015,-500.0,0.00027945,2]
[315071920,1708803099028,-556.87673486,0.00027945,2]
[315071921,1708803099039,-1301.76,0.00027945,2]
[315071922,1708803099048,-500.0,0.00027945,2]
[315071923,1708803099058,-500.0,0.00027945,2]
[315071924,1708803099068,-500.0,0.00027945,2]
[315071925,1708803099078,-500.0,0.00027945,2]
[315071926,1708803099087,-500.0,0.00027945,2]
[315071927,1708803099097,-500.0,0.00027945,2]
[315071928,1708803099107,-500.0,0.00027945,2]
[315071929,1708803099117,-500.0,0.00027945,2]
[315071930,1708803099127,-2635.7,0.00027945,2]
[315071931,1708803099136,-708.14,0.00027945,2]
[315071932,1708803099146,-1143.03,0.00027945,2]
[315071933,1708803099155,-616.39994497,0.00027945,2]
[315071934,1708803099165,-500.0,0.00027945,2]
[315071935,1708803099175,-917.12,0.00027945,2]
[315071936,1708803099184,-500.0,0.00027945,2]
[315071937,1708803099193,-500.0,0.00027945,2]
[315071938,1708803099204,-608.36,0.00027945,2]
[315071939,1708803099213,-659.11,0.00027945,2]
[315071940,1708803099222,-500.0,0.00027945,2]
[315071941,1708803099231,-500.0,0.00027945,2]
[315071942,1708803099241,-500.0,0.00027945,2]
[315071943,1708803099250,-500.0,0.00027945,2]
[315071944,1708803099260,-500.0,0.00027945,2]
[315071945,1708803099269,-500.0,0.00027945,2]
[315071946,1708803099278,-837.68,0.00027945,2]
[315071947,1708803099288,-6793.12,0.00027945,2]
[315071948,1708803099297,-1609.45,0.00027945,2]
[315071949,1708803099307,-1113.76,0.00027945,2]
[315071950,1708803099316,-500.0,0.00027945,2]
[315071951,1708803099326,-500.0,0.00027945,2]
[315071952,1708803099335,-192.3,0.00027945,2]
[315071953,1708803099345,-500.0,0.00027945,2]
[315071954,1708803099356,-1003.71,0.00027945,2]
[315071955,1708803099366,-2373.7,0.00027945,2]
[315071956,1708803099375,-500.0,0.00027945,2]
[315071957,1708803099385,-500.0,0.00027945,2]
[315071958,1708803099394,-500.0,0.00027945,2]
[315071959,1708803099403,-508.63272815,0.00027945,2]
[315071960,1708803099413,-500.0,0.00027945,2]
[315071961,1708803099423,-500.0,0.00027945,2]
[315071962,1708803099432,-500.0,0.00027945,2]
[315071963,1708803099441,-500.0,0.00027945,2]
[315071964,1708803099451,-500.0,0.00027945,2]
[315071965,1708803099461,-2314.68,0.00027945,2]
[315071966,1708803099470,-500.0,0.00027945,2]
[315071967,1708803099479,-1613.34,0.00027945,2]
[315071968,1708803099489,-500.0,0.00027945,2]
[315071969,1708803099499,-1242.35,0.00027945,2]
[315071970,1708803099508,-660.51,0.00027945,2]
[315071971,1708803099518,-690.4,0.00027945,2]
[315071972,1708803099528,-500.0,0.00027945,2]
[315071973,1708803099538,-500.0,0.00027945,2]
[315071974,1708803099548,-500.0,0.00027945,2]
[315071975,1708803099559,-500.0,0.00027945,2]
[315071976,1708803099569,-2690.21,0.00027945,2]
[315071977,1708803099579,-7014.8,0.00027945,2]
[315071978,1708803099588,-500.0,0.00027945,2]
[315071979,1708803099598,-500.0,0.00027945,2]
[315071980,1708803099608,-1270.85,0.00027945,2]
[315071981,1708803099618,-500.0,0.00027945,2]
[315071982,1708803099628,-500.0,0.00027945,2]
[315071983,1708803099637,-500.0,0.00027945,2]
[315071984,1708803099647,-5957.84,0.00027945,2]
[315071985,1708803099657,-2320.5,0.00027945,2]
[315071986,1708803099666,-500.0,0.00027945,2]
[315071987,1708803099676,-500.0,0.00027945,2]
[315071988,1708803099685,-500.0,0.00027945,2]
[315071989,1708803099694,-500.0,0.00027945,2]
[315071990,1708803099704,-500.0,0.00027945,2]
[315071991,1708803099714,-500.0,0.00027945,2]
[315071992,1708803099723,-500.0,0.00027945,2]
[315071993,1708803099733,-500.0,0.00027945,2]
[315071994,1708803099742,-500.0,0.00027945,2]
[315071995,1708803099752,-500.0,0.00027945,2]
[315071996,1708803099762,-500.0,0.00027945,2]
[315071997,1708803099772,-1555.66,0.00027945,2]
[315071998,1708803099781,-500.0,0.00027945,2]
[315071999,1708803099791,-1338.89,0.00027945,2]
[315072000,1708803099801,-500.0,0.00027945,2]
[315072001,1708803099811,-204.84718068,0.00027945,2]
[315072002,1708803099820,-500.0,0.00027945,2]
[315072003,1708803099829,-500.0,0.00027945,2]
[315072004,1708803099839,-4041.57,0.00027945,2]
[315072005,1708803099848,-607.55,0.00027945,2]
[315072006,1708803099858,-500.0,0.00027945,2]
[315072007,1708803099867,-500.0,0.00027945,2]
[315072008,1708803099877,-500.0,0.00027945,2]
[315072009,1708803099886,-17314.55,0.00027945,2]
[315072010,1708803099896,-500.0,0.00027945,2]
[315072011,1708803099905,-500.0,0.00027945,2]
[315072012,1708803099914,-500.0,0.00027945,2]
[315072013,1708803099923,-500.0,0.00027945,2]
[315072014,1708803099932,-500.0,0.00027945,2]
[315072015,1708803099942,-500.0,0.00027945,2]
[315072016,1708803099951,-500.0,0.00027945,2]
[315072017,1708803099961,-537.92,0.00027945,2]
[315072018,1708803099970,-500.0,0.00027945,2]
[315072019,1708803099980,-500.0,0.00027945,2]
[315072020,1708803099990,-500.0,0.00027945,2]
[315072021,1708803099999,-500.0,0.00027945,2]
[315072022,1708803100008,-500.0,0.00027945,2]
[315072023,1708803100018,-1672.21,0.00027945,2]
[315072024,1708803100032,-500.0,0.00027945,2]
[315072025,1708803100041,-500.0,0.00027945,2]
[315072026,1708803100051,-500.0,0.00027945,2]
[315072027,1708803100060,-500.0,0.00027945,2]
[315072028,1708803100071,-500.0,0.00027945,2]
[315072029,1708803100080,-500.0,0.00027945,2]
[315072030,1708803100089,-572.47,0.00027945,2]
[315072031,1708803100101,-961.1,0.00027945,2]
[315072032,1708803100111,-500.0,0.00027945,2]
[315072033,1708803100121,-500.0,0.00027945,2]
[315072034,1708803100131,-500.0,0.00027945,2]
[315072035,1708803100141,-181.1519647,0.00027945,2]
[315072036,1708803100151,-500.0,0.00027945,2]
[315072037,1708803100161,-500.0,0.00027945,2]
[315072038,1708803100171,-500.0,0.00027945,2]
[315072039,1708803100180,-500.0,0.00027945,2]
[315072040,1708803100190,-500.0,0.00027945,2]
[315072041,1708803100202,-500.0,0.00027945,2]
[315072042,1708803100212,-500.0,0.00027945,2]
[315072043,1708803100222,-345.0557124,0.00027945,2]
[315072044,1708803100231,-5616.67,0.00027945,2]
[315072045,1708803100240,-529.43,0.00027945,2]
[315072046,1708803100250,-500.0,0.00027945,2]
[315072047,1708803100259,-500.0,0.00027945,2]
[315072048,1708803100268,-500.0,0.00027945,2]
[315072049,1708803100277,-524.87,0.00027945,2]
[315072050,1708803100287,-500.0,0.00027945,2]
[315072051,1708803100296,-577.08935572,0.00027945,2]
[315072052,1708803100306,-370.14,0.00027945,2]
[315072053,1708803100315,-500.0,0.00027945,2]
[315072054,1708803100324,-500.0,0.00027945,2]
[315072055,1708803100335,-4701.11,0.00027945,2]
[315072056,1708803100344,-1428.36,0.00027945,2]
[315072057,1708803100353,-601.71075148,0.00027945,2]
[315072058,1708803100363,-500.0,0.00027945,2]
[315072059,1708803100372,-795.2,0.00027945,2]
[315072060,1708803100381,-500.0,0.00027945,2]
[315072061,1708803100391,-500.0,0.00027945,2]
[315072062,1708803100400,-500.0,0.00027945,2]
[315072063,1708803100411,-500.0,0.00027945,2]
[315072064,1708803100421,-854.47,0.00027945,2]
[315072065,1708803100430,-1665.61,0.00027945,2]
[315072066,1708803100440,-500.0,0.00027945,2]
[315072067,1708803100449,-500.0,0.00027945,2]
[315072068,1708803100458,-4566.55,0.00027945,2]
[315072069,1708803100468,-500.0,0.00027945,2]
[315072070,1708803100478,-500.0,0.00027945,2]
[315072071,1708803100487,-500.0,0.00027945,2]
[315072072,1708803100497,-823.53,0.00027945,2]
[315072073,1708803100507,-500.0,0.00027945,2]
[315072074,1708803100516,-500.0,0.00027945,2]
[315072075,1708803100525,-500.0,0.00027945,2]
[315072076,1708803100535,-764.15,0.00027945,2]
[315072077,1708803100545,-500.0,0.00027945,2]
[315072078,1708803100554,-500.0,0.00027945,2]
[315072079,1708803100564,-500.0,0.00027945,2]
[315072080,1708803100573,-1454.56,0.00027945,2]
[315072081,1708803100583,-9398.91,0.00027945,2]
[315072082,1708803100592,-827.47,0.00027945,2]
[315072083,1708803100601,-580.01,0.00027945,2]
[315072084,1708803100611,-500.0,0.00027945,2]
[315072085,1708803100620,-500.0,0.00027945,2]
[315072086,1708803100630,-524.27,0.00027945,2]
[315072087,1708803100639,-500.0,0.00027945,2]
[315072088,1708803100648,-636.98,0.00027945,2]
[315072089,1708803100658,-500.0,0.00027945,2]
[315072090,1708803100668,-500.0,0.00027945,2]
[315072091,1708803100678,-500.0,0.00027945,2]
[315072092,1708803100688,-500.0,0.00027945,2]
[315072093,1708803100697,-1842.2,0.00027945,2]
[315072094,1708803100707,-500.0,0.00027945,2]
[315072095,1708803100716,-511.51,0.00027945,2]
[315072096,1708803100726,-500.0,0.00027945,2]
[315072097,1708803100735,-500.0,0.00027945,2]
[315072098,1708803100745,-500.0,0.00027945,2]
[315072099,1708803100754,-500.0,0.00027945,2]
[315072100,1708803100764,-1147.43,0.00027945,2]
[315072101,1708803100773,-500.0,0.00027945,2]
[315072102,1708803100783,-500.0,0.00027945,2]
[315072103,1708803100792,-541.31,0.00027945,2]
[315072104,1708803100801,-500.0,0.00027945,2]
[315072105,1708803100810,-995.13,0.00027945,2]
[315072106,1708803100819,-500.0,0.00027945,2]
[315072107,1708803100828,-500.0,0.00027945,2]
[315072108,1708803100838,-500.0,0.00027945,2]
[315072109,1708803100848,-500.0,0.00027945,2]
[315072110,1708803100857,-500.0,0.00027945,2]
[315072111,1708803100867,-500.0,0.00027945,2]
[315072112,1708803100876,-5408.04,0.00027945,2]
[315072113,1708803100885,-524.1762869,0.00027945,2]
[315072114,1708803100894,-500.0,0.00027945,2]
[315072115,1708803100902,-500.0,0.00027945,2]
[315072116,1708803100911,-500.0,0.00027945,2]
[315072117,1708803100920,-667.27,0.00027945,2]
[315072118,1708803100929,-631.46,0.00027945,2]
[315072119,1708803100938,-500.0,0.00027945,2]
[315072120,1708803100947,-538.59,0.00027945,2]
[315072121,1708803100956,-813.16,0.00027945,2]
[315072122,1708803100964,-989.86,0.00027945,2]
[315072123,1708803100973,-500.0,0.00027945,2]
[315072124,1708803100982,-889.85,0.00027945,2]
[315072125,1708803100991,-500.0,0.00027945,2]
[315072126,1708803100999,-500.0,0.00027945,2]
[315072127,1708803101008,-1010.54,0.00027945,2]
[315072128,1708803101017,-702.19,0.00027945,2]
[315072129,1708803101028,-500.0,0.00027945,2]
[315072130,1708803101038,-2273.32,0.00027945,2]
[315072131,1708803101046,-500.0,0.00027945,2]
[315072132,1708803101055,-500.0,0.00027945,2]
[315072133,1708803101064,-500.0,0.00027945,2]
[315072134,1708803101074,-967.34,0.00027945,2]
[315072135,1708803101083,-5172.46,0.00027945,2]
[315072136,1708803101092,-964.79,0.00027945,2]
[315072137,1708803101100,-500.0,0.00027945,2]
[315072138,1708803101111,-500.0,0.00027945,2]
[315072139,1708803101120,-500.0,0.00027945,2]
[315072140,1708803101130,-500.0,0.00027945,2]
[315072141,1708803101139,-500.0,0.00027945,2]
[315072142,1708803101148,-500.0,0.00027945,2]
[315072143,1708803101157,-500.0,0.00027945,2]
[315072144,1708803101166,-599.51,0.00027945,2]
[315072145,1708803101175,-500.0,0.00027945,2]
[315072146,1708803101183,-500.0,0.00027945,2]
[315072147,1708803101192,-752.25,0.00027945,2]
[315072148,1708803101202,-587.58,0.00027945,2]
[315072149,1708803101211,-500.0,0.00027945,2]
[315072150,1708803101220,-500.0,0.00027945,2]
[315072151,1708803101230,-500.0,0.00027945,2]
[315072152,1708803101238,-1254.89,0.00027945,2]
[315072153,1708803101247,-500.0,0.00027945,2]
[315072154,1708803101256,-625.57,0.00027945,2]
[315072155,1708803101265,-500.0,0.00027945,2]
[315072156,1708803101274,-500.0,0.00027945,2]
[315072157,1708803101283,-617.74,0.00027945,2]
[315072158,1708803101292,-588.64,0.00027945,2]
[315072159,1708803101301,-1064.6,0.00027945,2]
[315072160,1708803101310,-500.0,0.00027945,2]
[315072161,1708803101319,-500.0,0.00027945,2]
[315072162,1708803101328,-500.0,0.00027945,2]
[315072163,1708803101337,-1164.09,0.00027945,2]
[315072164,1708803101346,-500.0,0.00027945,2]
[315072165,1708803101355,-500.0,0.00027945,2]
[315072166,1708803101363,-500.0,0.00027945,2]
[315072167,1708803101372,-500.0,0.00027945,2]
[315072168,1708803101381,-500.0,0.00027945,2]
[315072169,1708803101390,-1100.36,0.00027945,2]
[315072170,1708803101400,-500.0,0.00027945,2]
[315072171,1708803101409,-500.0,0.00027945,2]
[315072172,1708803101418,-1036.73,0.00027945,2]
[315072173,1708803101427,-709.2,0.00027945,2]
[315072174,1708803101436,-500.0,0.00027945,2]
[315072175,1708803101445,-497.47088414,0.00027945,2]
[315072176,1708803101454,-500.0,0.00027945,2]
[315072177,1708803101463,-500.0,0.00027945,2]
[315072178,1708803101473,-2912.08,0.00027945,2]
[315072179,1708803101482,-500.0,0.00027945,2]
[315072180,1708803101491,-940.79,0.00027945,2]
[315072181,1708803101500,-500.0,0.00027945,2]
[315072182,1708803101510,-500.0,0.00027945,2]
[315072183,1708803101518,-500.0,0.00027945,2]
[315072184,1708803101527,-500.0,0.00027945,2]
[315072185,1708803101537,-500.0,0.00027945,2]
[315072186,1708803101546,-500.0,0.00027945,2]
[315072187,1708803101555,-500.0,0.00027945,2]
[315072188,1708803101565,-1056.04,0.00027945,2]
[315072189,1708803101574,-500.0,0.00027945,2]
[315072190,1708803101583,-500.0,0.00027945,2]
[315072191,1708803101592,-500.0,0.00027945,2]